{"text_format":"1","workbook":"xlsx","n_sheets":2,"sheets":["AWEsome Intl Site Request","Print Copy"],"not_rendered":{"charts":0,"images":3,"macros":1,"external_links":0,"defined_names":2,"comments":0,"pivot_tables":0},"unopened":[],"bounds":{"document_bytes":16777216,"sheet_cells":100000,"rows_first":2000,"rows_last":500,"rows_between":2000,"halvings":0,"cell_chars":16384,"cell_head_chars":4096},"cells_cut":0,"cells_raw":0,"read":"whole","date_system":"1900"}

{"sheet":"AWEsome Intl Site Request","index":0,"n_rows":157,"n_cols":30,"rows_kept":157,"cut":false,"hidden":false,"merged":[[138,1,138,10],[135,1,135,10],[129,1,129,10],[130,2,130,4],[133,2,133,4],[132,2,132,4],[130,7,130,8],[131,2,131,4],[131,5,131,6],[131,7,131,8],[119,7,119,8],[118,1,118,3],[119,1,119,3],[133,7,133,8],[132,7,132,8],[130,5,130,6],[133,5,133,6],[132,5,132,6],[127,3,127,5],[127,6,127,8],[125,1,125,10],[107,2,107,3],[107,7,107,8],[108,2,108,3],[108,7,108,8],[100,1,100,4],[100,5,100,9],[102,1,102,10],[105,1,105,10],[120,1,120,3],[98,2,98,3],[98,7,98,8],[118,7,118,8],[96,2,96,3],[110,1,110,4],[110,5,110,9],[113,1,113,10],[116,1,116,10],[96,7,96,8],[68,6,68,7],[67,8,67,9],[68,8,68,9],[74,8,74,9],[95,2,95,3],[95,7,95,8],[83,2,83,3],[84,2,84,3],[85,2,85,3],[90,1,90,10],[65,8,65,9],[66,8,66,9],[63,8,63,9],[64,8,64,9],[82,7,82,8],[93,1,93,10],[87,1,87,4],[87,5,87,9],[84,7,84,8],[67,6,67,7],[70,8,70,9],[71,6,71,7],[65,6,65,7],[66,6,66,7],[60,6,60,7],[68,2,68,3],[69,2,69,3],[71,2,71,3],[60,2,60,3],[61,2,61,3],[61,8,61,9],[62,8,62,9],[61,6,61,7],[62,6,62,7],[65,2,65,3],[69,8,69,9],[69,6,69,7],[62,2,62,3],[63,6,63,7],[64,6,64,7],[85,7,85,8],[120,7,120,8],[71,8,71,9],[73,2,73,3],[74,2,74,3],[72,6,72,7],[73,6,73,7],[72,2,72,3],[97,2,97,3],[97,7,97,8],[50,8,50,9],[54,1,54,10],[50,4,50,5],[122,1,122,10],[77,1,77,10],[80,1,80,10],[82,2,82,3],[70,2,70,3],[74,6,74,7],[73,8,73,9],[52,5,52,9],[57,1,57,10],[63,2,63,3],[83,7,83,8],[64,2,64,3],[72,8,72,9],[70,6,70,7],[66,2,66,3],[67,2,67,3],[60,8,60,9],[31,2,31,3],[32,2,32,3],[24,1,24,10],[59,2,59,3],[59,6,59,7],[59,8,59,9],[33,2,33,3],[34,2,34,3],[50,6,50,7],[52,1,52,4],[48,1,48,2],[48,4,48,5],[45,1,45,10],[36,2,36,3],[48,6,48,7],[21,1,21,2],[37,7,37,9],[21,4,21,5],[21,6,21,7],[35,2,35,3],[35,7,35,8],[9,6,9,7],[11,6,11,7],[30,7,30,8],[31,7,31,8],[32,7,32,8],[33,7,33,8],[17,1,17,10],[29,1,29,10],[30,2,30,3],[7,6,7,7],[14,1,14,10],[19,1,19,2],[19,4,19,5],[19,6,19,7],[34,7,34,8],[9,1,9,2],[9,4,9,5],[11,1,11,2],[11,4,11,5],[40,4,40,5],[0,1,0,10],[2,1,2,10],[1,1,1,10],[3,1,3,10],[36,7,36,8],[5,1,5,10],[7,1,7,2],[28,1,28,10],[7,4,7,5],[154,2,154,9],[156,1,156,10],[141,2,141,9],[153,1,153,10],[4,0,4,16383],[139,2,139,9],[142,2,152,9],[140,2,140,9],[27,1,27,10],[50,1,50,2]]}
[]
[]
[null,"Please fill out all applicable fields on this Site Request Template. Once complete, use the \"File, Save As\" option to save the filled out form using a new name as a separate document leaving the original blank for later use.  Once saved and approved, send it via email to your AWEsome International representative to begin the site selection process."]
[]
[]
[null,"MEETING PLANNER INFORMATION"]
[]
[null,"MEETING PLANNER",null,null,null,null,"DEPARTMENT"]
[]
[null,"TELEPHONE",null,null,null,null,"FAX"]
[]
[null,"EMAIL ADDRESS",null,null,null,null,"CELL"]
[]
[]
[]
[]
[]
[null,"MEETING/EVENT INFORMATION"]
[]
[null,"MEETING OR EVENT TITLE",null,null,null,null," LOCATION                 (CITY OR CITIES)"]
[]
[null," DATES (From - To)",null,null,null,null,"ALTERNATE DATES"]
[]
[]
[]
[]
[]
[null,"ROOM BLOCK"]
[null,"10 ROOMS OR MORE PER NIGHT"]
[]
[null,null,"MONDAY",null,"TUESDAY","WEDNESDAY","THURSDAY","FRIDAY",null,"SATURDAY","SUNDAY"]
[null,"DATE","2017-01-09",null,{"$f":"C32+1","v":"2017-01-10"},{"$f":"E32+1","v":"2017-01-11"},{"$f":"F32+1","v":"2017-01-12"},{"$f":"G32+1","v":"2017-01-13"},null,{"$f":"H32+1","v":"2017-01-14"},{"$f":"J32+1","v":"2017-01-15"}]
[null,"SINGLES"]
[null,"DOUBLES"]
[null,"SUITES"]
[null,"STAFF ROOMS"]
[null,"DAY TOTALS",{"$f":"SUM(C33:C36)","v":0},null,{"$f":"SUM(E33:E36)","v":0},{"$f":"SUM(F33:F36)","v":0},{"$f":"SUM(G33:G36)","v":0},{"$f":"SUM(H33:H36)","v":0},null,{"$f":"SUM(J33:J36)","v":0},{"$f":"SUM(K33:K36)","v":0}]
[null,null,null,null,null,null,null,"TOTAL ROOM NIGHTS   ",null,null,{"$f":"SUM(C37:K37)","v":0}]
[]
[]
[null,null,null,null,"RESERVATION METHOD",null,false,null,null,null,null,null,null,null,null,null,null,null,null,null,null,null,null,null,null,null,false,false]
[]
[]
[]
[]
[null,"PROPERTY BRAND PREFERENCES"]
[]
[]
[null,"OPTION 1",null,null,null,null,"OPTION 2",null,null,null,null,null,null,null,null,null,null,null,null,null,null,null,null,null,null,null,1,1]
[]
[null,"OPTION 3",null,null,null,null,"OPTION 4",null,null,null,null,null,null,null,null,null,null,null,null,null,null,null,null,null,null,null,1,1]
[]
[null,"    OTHER  PREFERENCES"]
[]
[]
[]
[]
[null,"MEETING AGENDA"]
[]
[null,"Date","Begin Time",null,"End Time","Number of Attendees","Function",null,"Room Setup",null,"24 Hour Hold"]
[null,null,null,null,null,null,null,null,null,null,null,null,null,null,null,null,null,null,null,null,null,null,null,null,null,null,17,4,false]
[null,null,null,null,null,null,null,null,null,null,null,null,null,null,null,null,null,null,null,null,null,null,null,null,null,null,17,4,false]
[null,null,null,null,null,null,null,null,null,null,null,null,null,null,null,null,null,null,null,null,null,null,null,null,null,null,19,25,false]
[null,null,null,null,null,null,null,null,null,null,null,null,null,null,null,null,null,null,null,null,null,null,null,null,null,null,6,11,false]
[null,null,null,null,null,null,null,null,null,null,null,null,null,null,null,null,null,null,null,null,null,null,null,null,null,null,4,12,false]
[null,null,null,null,null,null,null,null,null,null,null,null,null,null,null,null,null,null,null,null,null,null,null,null,null,null,4,12,false]
[null,null,null,null,null,null,null,null,null,null,null,null,null,null,null,null,null,null,null,null,null,null,null,null,null,null,21,6,false]
[null,null,null,null,null,null,null,null,null,null,null,null,null,null,null,null,null,null,null,null,null,null,null,null,null,null,5,5,false]
[null,null,null,null,null,null,null,null,null,null,null,null,null,null,null,null,null,null,null,null,null,null,null,null,null,null,21,6,false]
[null,null,null,null,null,null,null,null,null,null,null,null,null,null,null,null,null,null,null,null,null,null,null,null,null,null,19,9,false]
[null,null,null,null,null,null,null,null,null,null,null,null,null,null,null,null,null,null,null,null,null,null,null,null,null,null,2,20,false]
[null,null,null,null,null,null,null,null,null,null,null,null,null,null,null,null,null,null,null,null,null,null,null,null,null,null,5,5,false]
[null,null,null,null,null,null,null,null,null,null,null,null,null,null,null,null,null,null,null,null,null,null,null,null,null,null,21,16,false]
[null,"2017-01-09","11:00:00",null,"12:30:00",45,null,null,null,null,null,null,null,null,null,null,null,null,null,null,null,null,null,null,null,null,6,20,false]
[null,"2017-01-09","15:00:00",null,"15:30:00",45,null,null,null,null,null,null,null,null,null,null,null,null,null,null,null,null,null,null,null,null,21,16,false]
[]
[]
[]
[]
[]
[null,"AUDIO/VISUAL REQUIREMENTS",null,null,null,null,null,null,null,null,null,null,null,null,null,null,null,null,null,null,null,null,null,null,null,null,false,false]
[null,null,null,null,null,null,null,null,null,null,null,null,null,null,null,null,null,null,null,null,null,null,null,null,null,null,false,false]
[null,null,null,null,null,null,null,null,null,null,null,null,null,null,null,null,null,null,null,null,null,null,null,null,null,null,false,false]
[null,"SOUND","TELEPHONE",null,"LCD PANEL","MICROPHONE","STAGE","ONSITE A/V TECHNICIAN",null,"OVERHEAD PROJECTOR","WALKIE / TALKIE",null,null,null,null,null,null,null,null,null,null,null,null,null,null,null,false,false]
[null,null,null,null,null,null,null,null,null,null,null,null,null,null,null,null,null,null,null,null,null,null,null,null,null,null,false,false]
[null,"SCREEN","REAR SCREEN",null,"TV / VCR","INTERNET CONNECTION","PENS & PADS","FLIPCHARTS",null,"SPECIAL LIGHTING","OTHER",null,null,null,null,null,null,null,null,null,null,null,null,null,null,null,false,false]
[null,null,null,null,null,null,null,null,null,null,null,null,null,null,null,null,null,null,null,null,null,null,null,null,null,null,false,false]
[null,"    OTHER A/V REQUIREMENTS",null,null,null,"A/V Tech must remain in conf room all day Tues & Wed of conference",null,null,null,null,null,null,null,null,null,null,null,null,null,null,null,null,null,null,null,null,false,false]
[]
[]
[null,null,null,null,null,null,null,null,null,null,null,null,null,null,null,null,null,null,null,null,null,null,null,null,null,null,false,false]
[null,null,null,null,null,null,null,null,null,null,null,null,null,null,null,null,null,null,null,null,null,null,null,null,null,null,false,false]
[null,null,null,null,null,null,null,null,null,null,null,null,null,null,null,null,null,null,null,null,null,null,null,null,null,null,false,false]
[null,"RECREATIONAL ACTIVITIES",null,null,null,null,null,null,null,null,null,null,null,null,null,null,null,null,null,null,null,null,null,null,null,null,false,false]
[null,null,null,null,null,null,null,null,null,null,null,null,null,null,null,null,null,null,null,null,null,null,null,null,null,null,false,false]
[null,null,null,null,null,null,null,null,null,null,null,null,null,null,null,null,null,null,null,null,null,null,null,null,null,null,false,false]
[null,"GOLF","TENNIS",null,"SPA","FITNESS CENTER","BICYCLING","HORSEBACK RIDING",null,"FISHING","TOURS",null,null,null,null,null,null,null,null,null,null,null,null,null,null,null,false,false]
[null,null,null,null,null,null,null,null,null,null,null,null,null,null,null,null,null,null,null,null,null,null,null,null,null,null,false,false]
[null,"BEACH","SWIMMING",null,"BOATING","VOLLEYBALL","RACQUET BALL","TEAM BUILDING",null,"NATURE WALKS","SKIING"]
[]
[null,"                   OTHER ACTIVITIES",null,null,null,null,null,null,null,null,null,null,null,null,null,null,null,null,null,null,null,null,null,true,null,null,"Adam's Mark","Amphitheatre","Breakfast","Annual Meeting"]
[null,null,null,null,null,null,null,null,null,null,null,null,null,null,null,null,null,null,null,null,null,null,null,true,null,null,"Best Western","Banquet","Continental Breakfast","Bi-Monthly Meeting"]
[null,null,null,null,null,null,null,null,null,null,null,null,null,null,null,null,null,null,null,null,null,null,null,true,null,null,"Chateau Elan","Boardroom","Meeting","First Time Meeting"]
[null,null,null,null,null,null,null,null,null,null,null,null,null,null,null,null,null,null,null,null,null,null,null,true,null,null,"Courtyard by Marriott","Classroom","General Session","Monthly Meeting"]
[null,null,null,null,null,null,null,null,null,null,null,null,null,null,null,null,null,null,null,null,null,null,null,true,null,null,"Crowne Plaza","Cocktail Rounds","Lunch","Quarterly Meeting"]
[null,"REQUESTED CONCESSIONS",null,null,null,null,null,null,null,null,null,null,null,null,null,null,null,null,null,null,null,null,null,true,null,null,"Doubletree","Conference Room","AM Break","Semi-Annual Meeting"]
[null,null,null,null,null,null,null,null,null,null,null,null,null,null,null,null,null,null,null,null,null,null,null,true,null,null,"Embassy Suites","Crescent Rounds","PM Break"]
[null,null,null,null,null,null,null,null,null,null,null,null,null,null,null,null,null,null,null,null,null,null,null,true,null,null,"Fairmont Hotels","Exhibits","Refresh Break"]
[null,"ONE COMP PER 50","DISCOUNT ON STAFF ROOMS",null,"PARKING DISCOUNT","FOOD & BEVERAGE DISCOUNTS","COMP SUITE","3 WEEKS CUT OFF DATE",null,"COMPLIMENTARY MEETING SPACE","A/V DISCOUNT",null,null,null,null,null,null,null,null,null,null,null,null,null,null,null,"Four Points by Sheraton","Flow","Breakout"]
[null,null,null,null,null,null,null,null,null,null,null,null,null,null,null,null,null,null,null,null,null,null,null,null,null,null,"Gaylord Hotels","Food Stations","Reception"]
[null,"OTHER CONCESSION REQUESTS",null,null,null,null,null,null,null,null,null,null,null,null,null,null,null,null,null,null,null,null,null,false,true,null,"Hampton Inn","Hollow Square","Recreation"]
[null,null,null,null,null,null,null,null,null,null,null,null,null,null,null,null,null,null,null,null,null,null,null,false,true,null,"Hilton Hotels","Hospitality Suite","Off-Property Event"]
[null,null,null,null,null,null,null,null,null,null,null,null,null,null,null,null,null,null,null,null,null,null,null,true,false,null,"Holiday Inn","On-Site Restaurant","Off-Property Dinner"]
[null,null,null,null,null,null,null,null,null,null,null,null,null,null,null,null,null,null,null,null,null,null,null,false,true,null,"Homewood Suites","Perimeter","Dinner"]
[null,null,null,null,null,null,null,null,null,null,null,null,null,null,null,null,null,null,null,null,null,null,null,false,true,null,"Hyatt Hotels","Reception","Party"]
[null,null,null,null,null,null,null,null,null,null,null,null,null,null,null,null,null,null,null,null,null,null,null,true,false,null,"InterContinental Hotels","Rounds","Office"]
[null,"BILLING METHODS",null,null,null,null,null,null,null,null,null,null,null,null,null,null,null,null,null,null,null,null,null,null,null,null,"KSL Resorts","Rounds of 10","Storage"]
[null,null,null,null,null,null,null,null,null,null,null,null,null,null,null,null,null,null,null,null,null,null,null,null,null,null,"Loew's","Rounds of 12","Registration"]
[null,"DESIGNATE EACH CATEGORY AS MASTER OR INDIVIDUAL",null,null,"ROOM & TAX","INCIDENTALS","FOOD & BEVERAGE","RECREATIONAL ACTIVITIES",null,"GRATUITIES","MEETING COSTS",null,null,null,null,null,null,null,null,null,null,null,null,null,null,null,"Marietta Conference Center","Rounds of 8","Beverage Only"]
[null,"MASTER ACCOUNT",null,null,null,null,null,null,null,null,null,null,null,null,null,null,null,null,null,null,null,null,null,null,null,null,"Marriott Hotels","School Room","Beverage & Snacks"]
[null,"INDIVIDUAL ACCOUNT",null,null,null,null,null,null,null,null,null,null,null,null,null,null,null,null,null,null,null,null,null,null,null,null,"Omni Hotels","See Comments","Off-Property Dinner"]
[null,null,null,null,null,null,null,null,null,null,null,null,null,null,null,null,null,null,null,null,null,null,null,null,null,null,"Holiday Inn","On-Site Restaurant","Dinner"]
[null,null,null,null,null,null,null,null,null,null,null,null,null,null,null,null,null,null,null,null,null,null,null,null,null,null,"Homewood Suites","Perimeter","Party"]
[null,null,null,null,null,null,null,null,null,null,null,null,null,null,null,null,null,null,null,null,null,null,null,null,null,null,"Hyatt Hotels","Reception","Office"]
[null,null,null,null,null,null,null,null,null,null,null,null,null,null,null,null,null,null,null,null,null,null,null,null,null,null,"InterContinental Hotels","Rounds","Storage"]
[null,"MEETING HISTORY",null,null,null,null,null,null,null,null,null,null,null,null,null,null,null,null,null,null,null,null,null,null,null,null,"KSL Resorts","Rounds of 10","Registration"]
[null,null,null,null,null,null,null,null,null,null,null,null,null,null,null,null,null,null,null,null,null,null,null,null,null,null,"Loew's","Rounds of 12","Off-Property Dinner"]
[null,null,null,"MEETING FREQUENCY",null,null,"Annual Conference",null,null,null,null,null,null,null,null,null,null,null,null,null,null,null,null,null,null,null,"Spring Hill Suites","On-Site Restaurant","Dinner"]
[null,null,null,null,null,null,null,null,null,null,null,null,null,null,null,null,null,null,null,null,null,null,null,null,null,null,"Summerfield Suites","Perimeter","Party"]
[null,"Please list where this meeting has taken place in the past",null,null,null,null,null,null,null,null,null,null,null,null,null,null,null,null,null,null,null,null,null,null,null,null,"TownePlace Suites","Reception","Office"]
[null,null,"PROPERTY",null,null,"EVENT DATES",null,"LOCATION",null,"ROOM NIGHTS",null,null,null,null,null,null,null,null,null,null,null,null,null,null,null,null,"W Hotels","Rounds","Storage"]
[null,null,null,null,null,null,null,null,null,null,null,null,null,null,null,null,null,null,null,null,null,null,null,null,null,null,"Wyndham","Rounds of 12"]
[null,null,null,null,null,null,null,null,null,null,null,null,null,null,null,null,null,null,null,null,null,null,null,null,null,null,"Wyndham","Rounds of 12"]
[null,null,null,null,null,null,null,null,null,null,null,null,null,null,null,null,null,null,null,null,null,null,null,null,null,null,"Wyndham","Rounds of 12"]
[null,null,null,null,null,null,null,null,null,null,null,null,null,null,null,null,null,null,null,null,null,null,null,null,null,null,"Homewood Suites"]
[null,null,null,null,null,null,null,null,null,null,null,null,null,null,null,null,null,null,null,null,null,null,null,null,null,null,"Hyatt Hotels"]
[null,null,null,null,null,null,null,null,null,null,null,null,null,null,null,null,null,null,null,null,null,null,null,null,null,null,"InterContinental Hotels"]
[null,null,null,null,null,null,null,null,null,null,null,null,null,null,null,null,null,null,null,null,null,null,null,null,null,null,"KSL Resorts"]
[null,"ADDITIONAL COMMENTS & QUESTIONS",null,null,null,null,null,null,null,null,null,null,null,null,null,null,null,null,null,null,null,null,null,null,null,null,"Loew's"]
[null,null,"Please provide any additional comments, questions or information here."]
[]
[null,null,"Excel Tip: Hold the ALT key when hitting enter to go to a new line within the same box."]
[]
[]
[]
[]
[]
[]
[]
[]
[]
[]
[]
[null,"Remember to save this meeting document separately by choosing Save As from the File Menu in order to retain the blank form for later use. "]
[null,null,"Click the \"Print Copy\" tab at the bottom of this form for a printer friendly copy of the information entered on this page."]
[]
[null,"THIS DOCUMENT CONTAINS PRIVATE AND/OR PROPRIETARY INFORMATION.  IT MAY NOT BE USED OR DISCLOSED OUTSIDE OF AWESOME INTERNATIONAL EXCEPT PURSUANT TO A WRITTEN AGREEMENT.  DESIGNED AND PROVIDED BY AWESOME INTERNATIONAL."]

{"sheet":"Print Copy","index":1,"n_rows":154,"n_cols":30,"rows_kept":154,"cut":false,"hidden":false,"merged":[[141,2,151,9],[153,1,153,10],[138,1,138,10],[139,2,139,9],[140,2,140,9],[133,2,133,4],[133,5,133,6],[133,7,133,8],[135,1,135,10],[131,2,131,4],[131,5,131,6],[131,7,131,8],[132,2,132,4],[132,5,132,6],[132,7,132,8],[129,1,129,10],[130,2,130,4],[130,5,130,6],[130,7,130,8],[122,1,122,10],[125,1,125,10],[127,3,127,5],[127,6,127,8],[119,1,119,3],[119,7,119,8],[120,1,120,3],[120,7,120,8],[113,1,113,10],[116,1,116,10],[118,1,118,3],[118,7,118,8],[108,2,108,3],[108,7,108,8],[110,1,110,4],[110,5,110,9],[102,1,102,10],[105,1,105,10],[107,2,107,3],[107,7,107,8],[98,2,98,3],[98,7,98,8],[100,1,100,4],[100,5,100,9],[96,2,96,3],[96,7,96,8],[97,2,97,3],[97,7,97,8],[90,1,90,10],[93,1,93,10],[95,2,95,3],[95,7,95,8],[85,2,85,3],[85,7,85,8],[87,1,87,4],[87,5,87,9],[83,2,83,3],[83,7,83,8],[84,2,84,3],[84,7,84,8],[77,1,77,10],[80,1,80,10],[82,2,82,3],[82,7,82,8],[73,2,73,3],[73,6,73,7],[73,8,73,9],[74,2,74,3],[74,6,74,7],[74,8,74,9],[71,2,71,3],[71,6,71,7],[71,8,71,9],[72,2,72,3],[72,6,72,7],[72,8,72,9],[69,2,69,3],[69,6,69,7],[69,8,69,9],[70,2,70,3],[70,6,70,7],[70,8,70,9],[67,2,67,3],[67,6,67,7],[67,8,67,9],[68,2,68,3],[68,6,68,7],[68,8,68,9],[65,2,65,3],[65,6,65,7],[65,8,65,9],[66,2,66,3],[66,6,66,7],[66,8,66,9],[63,2,63,3],[63,6,63,7],[63,8,63,9],[64,2,64,3],[64,6,64,7],[64,8,64,9],[61,2,61,3],[61,6,61,7],[61,8,61,9],[62,2,62,3],[62,6,62,7],[62,8,62,9],[59,2,59,3],[59,6,59,7],[59,8,59,9],[60,2,60,3],[60,6,60,7],[60,8,60,9],[52,1,52,4],[52,5,52,9],[54,1,54,10],[57,1,57,10],[50,1,50,2],[50,4,50,5],[50,6,50,7],[50,8,50,9],[45,1,45,10],[48,1,48,2],[48,4,48,5],[48,6,48,7],[37,7,37,9],[40,4,40,5],[40,6,40,7],[40,8,40,9],[35,2,35,3],[35,7,35,8],[36,2,36,3],[36,7,36,8],[33,2,33,3],[33,7,33,8],[34,2,34,3],[34,7,34,8],[31,2,31,3],[31,7,31,8],[32,2,32,3],[32,7,32,8],[27,1,27,10],[28,1,28,10],[29,1,29,10],[30,2,30,3],[30,7,30,8],[24,1,24,10],[14,1,14,10],[17,1,17,10],[19,1,19,2],[19,4,19,5],[19,6,19,7],[7,6,7,7],[9,1,9,2],[9,4,9,5],[9,6,9,7],[21,1,21,2],[21,4,21,5],[21,6,21,7],[1,1,1,10],[2,0,2,11],[3,1,3,10],[5,1,5,10],[10,6,10,7],[11,1,11,2],[11,4,11,5],[11,6,11,7],[7,1,7,2],[7,4,7,5]]}
[]
[]
["Site Selection Request"]
[]
[]
[null,"MEETING PLANNER INFORMATION"]
[]
[null,"MEETING PLANNER",null,null,{"$f":"'AWEsome Intl Site Request'!$E$8","v":0},null,"DEPARTMENT",null,null,{"$f":"'AWEsome Intl Site Request'!$J$8","v":0}]
[]
[null,"TELEPHONE",null,null,{"$f":"'AWEsome Intl Site Request'!$E$10","v":0},null,"FAX",null,null,{"$f":"'AWEsome Intl Site Request'!$J$10","v":0}]
[]
[null,"EMAIL ADDRESS",null,null,{"$f":"'AWEsome Intl Site Request'!$E$12","v":0},null,"CELL",null,null,{"$f":"'AWEsome Intl Site Request'!$J$12","v":0}]
[]
[]
[]
[]
[]
[null,"MEETING/EVENT INFORMATION"]
[]
[null,"MEETING OR EVENT TITLE",null,null,{"$f":"'AWEsome Intl Site Request'!$E$20","v":0},null," LOCATION                 (CITY OR CITIES)",null,null,{"$f":"'AWEsome Intl Site Request'!$J$20","v":0}]
[]
[null," DATES (From - To)",null,null,{"$f":"'AWEsome Intl Site Request'!$E$22","v":0},null,"ALTERNATE DATES",null,null,{"$f":"'AWEsome Intl Site Request'!$J$22","v":0}]
[]
[]
[]
[]
[]
[null,"ROOM BLOCK"]
[]
[]
[null,null,"MONDAY",null,"TUESDAY","WEDNESDAY","THURSDAY","FRIDAY",null,"SATURDAY","SUNDAY"]
[null,"DATE",{"$f":"'AWEsome Intl Site Request'!C32","v":"2017-01-09"},null,{"$f":"'AWEsome Intl Site Request'!E32","v":"2017-01-10"},{"$f":"'AWEsome Intl Site Request'!F32","v":"2017-01-11"},{"$f":"'AWEsome Intl Site Request'!G32","v":"2017-01-12"},{"$f":"'AWEsome Intl Site Request'!H32","v":"2017-01-13"},null,{"$f":"'AWEsome Intl Site Request'!J32","v":"2017-01-14"},{"$f":"'AWEsome Intl Site Request'!K32","v":"2017-01-15"}]
[null,"SINGLES",{"$f":"'AWEsome Intl Site Request'!C33","v":0},null,{"$f":"'AWEsome Intl Site Request'!E33","v":0},{"$f":"'AWEsome Intl Site Request'!F33","v":0},{"$f":"'AWEsome Intl Site Request'!G33","v":0},{"$f":"'AWEsome Intl Site Request'!H33","v":0},null,{"$f":"'AWEsome Intl Site Request'!J33","v":0},{"$f":"'AWEsome Intl Site Request'!K33","v":0}]
[null,"DOUBLES",{"$f":"'AWEsome Intl Site Request'!C34","v":0},null,{"$f":"'AWEsome Intl Site Request'!E34","v":0},{"$f":"'AWEsome Intl Site Request'!F34","v":0},{"$f":"'AWEsome Intl Site Request'!G34","v":0},{"$f":"'AWEsome Intl Site Request'!H34","v":0},null,{"$f":"'AWEsome Intl Site Request'!J34","v":0},{"$f":"'AWEsome Intl Site Request'!K34","v":0}]
[null,"SUITES",{"$f":"'AWEsome Intl Site Request'!C35","v":0},null,{"$f":"'AWEsome Intl Site Request'!E35","v":0},{"$f":"'AWEsome Intl Site Request'!F35","v":0},{"$f":"'AWEsome Intl Site Request'!G35","v":0},{"$f":"'AWEsome Intl Site Request'!H35","v":0},null,{"$f":"'AWEsome Intl Site Request'!J35","v":0},{"$f":"'AWEsome Intl Site Request'!K35","v":0}]
[null,"STAFF ROOMS",{"$f":"'AWEsome Intl Site Request'!C36","v":0},null,{"$f":"'AWEsome Intl Site Request'!E36","v":0},{"$f":"'AWEsome Intl Site Request'!F36","v":0},{"$f":"'AWEsome Intl Site Request'!G36","v":0},{"$f":"'AWEsome Intl Site Request'!H36","v":0},null,{"$f":"'AWEsome Intl Site Request'!J36","v":0},{"$f":"'AWEsome Intl Site Request'!K36","v":0}]
[null,"DAY TOTALS",{"$f":"SUM(C33:C36)","v":0},null,{"$f":"SUM(E33:E36)","v":0},{"$f":"SUM(F33:F36)","v":0},{"$f":"SUM(G33:G36)","v":0},{"$f":"SUM(H33:H36)","v":0},null,{"$f":"SUM(J33:J36)","v":0},{"$f":"SUM(K33:K36)","v":0}]
[null,null,null,null,null,null,null,"TOTAL ROOM NIGHTS   ",null,null,{"$f":"SUM(C37:K37)","v":0}]
[]
[]
[null,null,null,null,"RESERVATION METHOD",null,"Individual Call-In",null,"Rooming List"]
[]
[]
[]
[]
[null,"PROPERTY BRAND PREFERENCES"]
[]
[]
[null,"OPTION 1",null,null,null,null,"OPTION 2"]
[]
[null,"OPTION 3",null,null,null,null,"OPTION 4"]
[]
[null,"    OTHER  PREFERENCES",null,null,null,{"$f":"'AWEsome Intl Site Request'!$F$53","v":0}]
[]
[]
[]
[]
[null,"MEETING AGENDA"]
[]
[null,"Date","Begin Time",null,"End Time","Number of Attendees","Function",null,"Room Setup",null,"24 Hour Hold"]
[null,{"$f":"'AWEsome Intl Site Request'!B61","v":"00:00:00"},{"$f":"'AWEsome Intl Site Request'!C61","v":"00:00:00"},null,{"$f":"'AWEsome Intl Site Request'!E61","v":"00:00:00"},{"$f":"'AWEsome Intl Site Request'!F61","v":0}]
[null,{"$f":"'AWEsome Intl Site Request'!B62","v":"00:00:00"},{"$f":"'AWEsome Intl Site Request'!C62","v":"00:00:00"},null,{"$f":"'AWEsome Intl Site Request'!E62","v":"00:00:00"},{"$f":"'AWEsome Intl Site Request'!F62","v":0}]
[null,{"$f":"'AWEsome Intl Site Request'!B63","v":"00:00:00"},{"$f":"'AWEsome Intl Site Request'!C63","v":"00:00:00"},null,{"$f":"'AWEsome Intl Site Request'!E63","v":"00:00:00"},{"$f":"'AWEsome Intl Site Request'!F63","v":0}]
[null,{"$f":"'AWEsome Intl Site Request'!B64","v":"00:00:00"},{"$f":"'AWEsome Intl Site Request'!C64","v":"00:00:00"},null,{"$f":"'AWEsome Intl Site Request'!E64","v":"00:00:00"},{"$f":"'AWEsome Intl Site Request'!F64","v":0}]
[null,{"$f":"'AWEsome Intl Site Request'!B65","v":"00:00:00"},{"$f":"'AWEsome Intl Site Request'!C65","v":"00:00:00"},null,{"$f":"'AWEsome Intl Site Request'!E65","v":"00:00:00"},{"$f":"'AWEsome Intl Site Request'!F65","v":0}]
[null,{"$f":"'AWEsome Intl Site Request'!B66","v":"00:00:00"},{"$f":"'AWEsome Intl Site Request'!C66","v":"00:00:00"},null,{"$f":"'AWEsome Intl Site Request'!E66","v":"00:00:00"},{"$f":"'AWEsome Intl Site Request'!F66","v":0}]
[null,{"$f":"'AWEsome Intl Site Request'!B67","v":"00:00:00"},{"$f":"'AWEsome Intl Site Request'!C67","v":"00:00:00"},null,{"$f":"'AWEsome Intl Site Request'!E67","v":"00:00:00"},{"$f":"'AWEsome Intl Site Request'!F67","v":0}]
[null,{"$f":"'AWEsome Intl Site Request'!B68","v":"00:00:00"},{"$f":"'AWEsome Intl Site Request'!C68","v":"00:00:00"},null,{"$f":"'AWEsome Intl Site Request'!E68","v":"00:00:00"},{"$f":"'AWEsome Intl Site Request'!F68","v":0}]
[null,{"$f":"'AWEsome Intl Site Request'!B69","v":"00:00:00"},{"$f":"'AWEsome Intl Site Request'!C69","v":"00:00:00"},null,{"$f":"'AWEsome Intl Site Request'!E69","v":"00:00:00"},{"$f":"'AWEsome Intl Site Request'!F69","v":0}]
[null,{"$f":"'AWEsome Intl Site Request'!B70","v":"00:00:00"},{"$f":"'AWEsome Intl Site Request'!C70","v":"00:00:00"},null,{"$f":"'AWEsome Intl Site Request'!E70","v":"00:00:00"},{"$f":"'AWEsome Intl Site Request'!F70","v":0}]
[null,{"$f":"'AWEsome Intl Site Request'!B71","v":"00:00:00"},{"$f":"'AWEsome Intl Site Request'!C71","v":"00:00:00"},null,{"$f":"'AWEsome Intl Site Request'!E71","v":"00:00:00"},{"$f":"'AWEsome Intl Site Request'!F71","v":0}]
[null,{"$f":"'AWEsome Intl Site Request'!B72","v":"00:00:00"},{"$f":"'AWEsome Intl Site Request'!C72","v":"00:00:00"},null,{"$f":"'AWEsome Intl Site Request'!E72","v":"00:00:00"},{"$f":"'AWEsome Intl Site Request'!F72","v":0}]
[null,{"$f":"'AWEsome Intl Site Request'!B73","v":"00:00:00"},{"$f":"'AWEsome Intl Site Request'!C73","v":"00:00:00"},null,{"$f":"'AWEsome Intl Site Request'!E73","v":"00:00:00"},{"$f":"'AWEsome Intl Site Request'!F73","v":0}]
[null,{"$f":"'AWEsome Intl Site Request'!B74","v":"2017-01-09"},{"$f":"'AWEsome Intl Site Request'!C74","v":"11:00:00"},null,{"$f":"'AWEsome Intl Site Request'!E74","v":"12:30:00"},{"$f":"'AWEsome Intl Site Request'!F74","v":45}]
[null,{"$f":"'AWEsome Intl Site Request'!B75","v":"2017-01-09"},{"$f":"'AWEsome Intl Site Request'!C75","v":"15:00:00"},null,{"$f":"'AWEsome Intl Site Request'!E75","v":"15:30:00"},{"$f":"'AWEsome Intl Site Request'!F75","v":45}]
[]
[]
[]
[]
[]
[null,"AUDIO/VISUAL REQUIREMENTS"]
[]
[]
[null,"SOUND","TELEPHONE",null,"LCD PANEL","MICROPHONE","STAGE","ONSITE A/V TECHNICIAN",null,"OVERHEAD PROJECTOR","WALKIE / TALKIE"]
[]
[null,"SCREEN","REAR SCREEN",null,"TV / VCR","INTERNET CONNECTION","PENS & PADS","FLIPCHARTS",null,"SPECIAL LIGHTING","OTHER"]
[]
[null,"    OTHER A/V REQUIREMENTS",null,null,null,{"$f":"'AWEsome Intl Site Request'!$F$88","v":"A/V Tech must remain in conf room all day Tues & Wed of conference"}]
[]
[]
[]
[]
[]
[null,"RECREATIONAL ACTIVITIES"]
[]
[]
[null,"GOLF","TENNIS",null,"SPA","FITNESS CENTER","BICYCLING","HORSEBACK RIDING",null,"FISHING","TOURS"]
[]
[null,"BEACH","SWIMMING",null,"BOATING","VOLLEYBALL","RACQUET BALL","TEAM BUILDING",null,"NATURE WALKS","SKIING"]
[]
[null,"                   OTHER ACTIVITIES",null,null,null,{"$f":"'AWEsome Intl Site Request'!$F$101","v":0},null,null,null,null,null,null,null,null,null,null,null,null,null,null,null,null,null,null,null,null,"Adam's Mark","Amphitheatre","Breakfast","Annual Meeting"]
[null,null,null,null,null,null,null,null,null,null,null,null,null,null,null,null,null,null,null,null,null,null,null,null,null,null,"Best Western","Banquet","Continental Breakfast","Bi-Monthly Meeting"]
[null,null,null,null,null,null,null,null,null,null,null,null,null,null,null,null,null,null,null,null,null,null,null,null,null,null,"Chateau Elan","Boardroom","Meeting","First Time Meeting"]
[null,null,null,null,null,null,null,null,null,null,null,null,null,null,null,null,null,null,null,null,null,null,null,null,null,null,"Courtyard by Marriott","Classroom","General Session","Monthly Meeting"]
[null,null,null,null,null,null,null,null,null,null,null,null,null,null,null,null,null,null,null,null,null,null,null,null,null,null,"Crowne Plaza","Cocktail Rounds","Lunch","Quarterly Meeting"]
[null,"REQUESTED CONCESSIONS",null,null,null,null,null,null,null,null,null,null,null,null,null,null,null,null,null,null,null,null,null,null,null,null,"Doubletree","Conference Room","AM Break","Semi-Annual Meeting"]
[null,null,null,null,null,null,null,null,null,null,null,null,null,null,null,null,null,null,null,null,null,null,null,null,null,null,"Embassy Suites","Crescent Rounds","PM Break"]
[null,null,null,null,null,null,null,null,null,null,null,null,null,null,null,null,null,null,null,null,null,null,null,null,null,null,"Fairmont Hotels","Exhibits","Refresh Break"]
[null,"ONE COMP PER 50","DISCOUNT ON STAFF ROOMS",null,"PARKING DISCOUNT","FOOD & BEVERAGE DISCOUNTS","COMP SUITE","3 WEEKS CUT OFF DATE",null,"COMPLIMENTARY MEETING SPACE","A/V DISCOUNT",null,null,null,null,null,null,null,null,null,null,null,null,null,null,null,"Four Points by Sheraton","Flow","Breakout"]
[null,null,null,null,null,null,null,null,null,null,null,null,null,null,null,null,null,null,null,null,null,null,null,null,null,null,"Gaylord Hotels","Food Stations","Reception"]
[null,"OTHER CONCESSION REQUESTS",null,null,null,{"$f":"'AWEsome Intl Site Request'!$F$111","v":0},null,null,null,null,null,null,null,null,null,null,null,null,null,null,null,null,null,null,null,null,"Hampton Inn","Hollow Square","Recreation"]
[null,null,null,null,null,null,null,null,null,null,null,null,null,null,null,null,null,null,null,null,null,null,null,null,null,null,"Hilton Hotels","Hospitality Suite","Off-Property Event"]
[null,null,null,null,null,null,null,null,null,null,null,null,null,null,null,null,null,null,null,null,null,null,null,null,null,null,"Holiday Inn","On-Site Restaurant","Off-Property Dinner"]
[null,null,null,null,null,null,null,null,null,null,null,null,null,null,null,null,null,null,null,null,null,null,null,null,null,null,"Homewood Suites","Perimeter","Dinner"]
[null,null,null,null,null,null,null,null,null,null,null,null,null,null,null,null,null,null,null,null,null,null,null,null,null,null,"Hyatt Hotels","Reception","Party"]
[null,null,null,null,null,null,null,null,null,null,null,null,null,null,null,null,null,null,null,null,null,null,null,null,null,null,"InterContinental Hotels","Rounds","Office"]
[null,"BILLING METHODS",null,null,null,null,null,null,null,null,null,null,null,null,null,null,null,null,null,null,null,null,null,null,null,null,"KSL Resorts","Rounds of 10","Storage"]
[null,null,null,null,null,null,null,null,null,null,null,null,null,null,null,null,null,null,null,null,null,null,null,null,null,null,"Loew's","Rounds of 12","Registration"]
[null,"DESIGNATE EACH CATEGORY AS MASTER OR INDIVIDUAL",null,null,"ROOM & TAX","INCIDENTALS","FOOD & BEVERAGE","RECREATIONAL ACTIVITIES",null,"GRATUITIES","MEETING COSTS",null,null,null,null,null,null,null,null,null,null,null,null,null,null,null,"Marietta Conference Center","Rounds of 8","Beverage Only"]
[null,"MASTER ACCOUNT",null,null,null,null,null,null,null,null,null,null,null,null,null,null,null,null,null,null,null,null,null,null,null,null,"Marriott Hotels","School Room","Beverage & Snacks"]
[null,"INDIVIDUAL ACCOUNT",null,null,null,null,null,null,null,null,null,null,null,null,null,null,null,null,null,null,null,null,null,null,null,null,"Omni Hotels","See Comments","Off-Property Dinner"]
[null,null,null,null,null,null,null,null,null,null,null,null,null,null,null,null,null,null,null,null,null,null,null,null,null,null,"Holiday Inn","On-Site Restaurant","Dinner"]
[null,null,null,null,null,null,null,null,null,null,null,null,null,null,null,null,null,null,null,null,null,null,null,null,null,null,"Homewood Suites","Perimeter","Party"]
[null,null,null,null,null,null,null,null,null,null,null,null,null,null,null,null,null,null,null,null,null,null,null,null,null,null,"Hyatt Hotels","Reception","Office"]
[null,null,null,null,null,null,null,null,null,null,null,null,null,null,null,null,null,null,null,null,null,null,null,null,null,null,"InterContinental Hotels","Rounds","Storage"]
[null,"MEETING HISTORY",null,null,null,null,null,null,null,null,null,null,null,null,null,null,null,null,null,null,null,null,null,null,null,null,"KSL Resorts","Rounds of 10","Registration"]
[null,null,null,null,null,null,null,null,null,null,null,null,null,null,null,null,null,null,null,null,null,null,null,null,null,null,"Loew's","Rounds of 12","Off-Property Dinner"]
[null,null,null,"MEETING FREQUENCY",null,null,{"$f":"'AWEsome Intl Site Request'!$G$128","v":"Annual Conference"},null,null,null,null,null,null,null,null,null,null,null,null,null,null,null,null,null,null,null,"Spring Hill Suites","On-Site Restaurant","Dinner"]
[null,null,null,null,null,null,null,null,null,null,null,null,null,null,null,null,null,null,null,null,null,null,null,null,null,null,"Summerfield Suites","Perimeter","Party"]
[null,"Please list where this meeting has taken place in the past",null,null,null,null,null,null,null,null,null,null,null,null,null,null,null,null,null,null,null,null,null,null,null,null,"TownePlace Suites","Reception","Office"]
[null,null,"PROPERTY",null,null,"EVENT DATES",null,"LOCATION",null,"ROOM NIGHTS",null,null,null,null,null,null,null,null,null,null,null,null,null,null,null,null,"W Hotels","Rounds","Storage"]
[null,null,{"$f":"'AWEsome Intl Site Request'!C132","v":0},null,null,{"$f":"'AWEsome Intl Site Request'!F132","v":0},null,{"$f":"'AWEsome Intl Site Request'!H132","v":0},null,{"$f":"'AWEsome Intl Site Request'!J132","v":0},null,null,null,null,null,null,null,null,null,null,null,null,null,null,null,null,"Westin","Rounds of 10","Registration"]
[null,null,{"$f":"'AWEsome Intl Site Request'!C133","v":0},null,null,{"$f":"'AWEsome Intl Site Request'!F133","v":0},null,{"$f":"'AWEsome Intl Site Request'!H133","v":0},null,{"$f":"'AWEsome Intl Site Request'!J133","v":0},null,null,null,null,null,null,null,null,null,null,null,null,null,null,null,null,"Wyndham","Rounds of 12"]
[null,null,{"$f":"'AWEsome Intl Site Request'!C134","v":0},null,null,{"$f":"'AWEsome Intl Site Request'!F134","v":0},null,{"$f":"'AWEsome Intl Site Request'!H134","v":0},null,{"$f":"'AWEsome Intl Site Request'!J134","v":0},null,null,null,null,null,null,null,null,null,null,null,null,null,null,null,null,"Holiday Inn"]
[null,null,null,null,null,null,null,null,null,null,null,null,null,null,null,null,null,null,null,null,null,null,null,null,null,null,"Homewood Suites"]
[null,null,null,null,null,null,null,null,null,null,null,null,null,null,null,null,null,null,null,null,null,null,null,null,null,null,"Hyatt Hotels"]
[null,null,null,null,null,null,null,null,null,null,null,null,null,null,null,null,null,null,null,null,null,null,null,null,null,null,"InterContinental Hotels"]
[null,null,null,null,null,null,null,null,null,null,null,null,null,null,null,null,null,null,null,null,null,null,null,null,null,null,"KSL Resorts"]
[null,"ADDITIONAL COMMENTS & QUESTIONS",null,null,null,null,null,null,null,null,null,null,null,null,null,null,null,null,null,null,null,null,null,null,null,null,"Loew's"]
[]
[]
[null,null,{"$f":"'AWEsome Intl Site Request'!$C$143","v":0}]
[]
[]
[]
[]
[]
[]
[]
[]
[]
[]
[]
[null,"THIS DOCUMENT CONTAINS PRIVATE AND/OR PROPRIETARY INFORMATION.  IT MAY NOT BE USED OR DISCLOSED OUTSIDE OF AWESOME INTERNATIONAL EXCEPT PURSUANT TO A WRITTEN AGREEMENT."]